[Event "Czech Championship 2022"]
[Site "Usti nad Labem"]
[Date "2022.05.21"]
[Round "8.3"]
[White "Hracek, Zbynek"]
[Black "Kraus, Tomas"]
[Result "1/2-1/2"]
[ECO "B45"]
[WhiteElo "2570"]
[BlackElo "2472"]
[Annotator "TA"]
[PlyCount "79"]
[EventDate "2022.05.12"]
[EventType "swiss"]
[EventCountry "CZE"]
[SourceTitle "playchess.com"]
[Source "ChessBase"]
[SourceQuality "1"]
[TimeControl "40/5400+30:1800+30"]

{[%evp 11,79,6,37,26,41,0,0,0,43,36,46,35,43,42,40,38,46,41,77,75,75,77,68,33,35,38,31,40,45,43,16,20,20,20,14,46,39,0,0,0,0,0,0,0,0,0,0,0,24,16,34,22,22,0,18,18,18,3,36,8,11,0,0,0,0,0,0,0,0,0]} 1. e4 {[%emt 0:00:11]} c5 {[%emt 0:00:29]} 2. Nf3 {[%emt 0:00:09]} e6 {[%emt 0:00:22]} 3. d4 {[%emt 0:00:06]} cxd4 {[%emt 0:00:05]} 4. Nxd4 {[%emt 0:00:02]} Nf6 {[%emt 0:00:10]} 5. Nc3 {[%emt 0:00:05]} Nc6 {[%emt 0:00:29]} 6. Be2 {[%emt 0:00:07]} d5 {[%emt 0:07:49]} 7. exd5 {[%emt 0:01:25] B45: Sicilian Four Knights.} Nxd5 {[%emt 0:00:06]} 8. Nxc6 {[%emt 0:10:18]} bxc6 {[%emt 0:00:06]} 9. Ne4 {[%emt 0:00:50]} Be7 {[%emt 0:11:51]} 10. c4 $1 {[%emt 0:05:55]} Nf6 {[%emt 0:04:50]} 11. Qxd8+ {[%emt 0:02:01] [#]} Bxd8 $146 {[%emt 0:02:42]} ({Predecessor:} 11... Kxd8 12. Nc3 Rb8 13. Bf4 Rb7 14. Bf3 Bd7 15. O-O-O Kc8 16. Rd3 Rd8 17. Rhd1 Rb4 {½-½ (34) Aveskulov,V (2457)-Khakimov,T (2282) Kharkov 2005}) 12. Bf3 {[%emt 0:13:16] [#] Nxf6+ is the strong threat.} Nxe4 {[%emt 0:04:22]} 13. Bxe4 {[%emt 0:00:04]} Bb7 {[%emt 0:04:45]} 14. Be3 {[%emt 0:08:43]} Bb6 {[%emt 0:07:39]} 15. c5 {[%emt 0:01:09] White is more active.} Ba5+ {[%emt 0:00:31]} 16. Ke2 {[%emt 0:00:14]} O-O-O {[%emt 0:03:52]} 17. Rhd1 {[%emt 0:09:43]} Ba6+ {[%emt 0:06:28]} 18. Kf3 {[%emt 0:00:35]} Kb7 {[%emt 0:42:54]} 19. b4 {[%emt 0:04:19]} Bc7 {[%emt 0:00:00]} (19... Bxb4 $2 20. Rdb1 $18) 20. a4 $1 {[%emt 0:08:33]} Bc4 {[%emt 0:00:00]} 21. b5 {[%emt 0:01:05]} Bd5 {[%emt 0:00:00]} 22. Bxd5 {[%emt 0:01:50]} exd5 {[%emt 0:00:00]} 23. Bd4 {[%emt 0:07:51]} f6 {[%emt 0:00:00]} 24. b6 {[%emt 0:02:12]} axb6 {[%emt 0:00:00]} 25. cxb6 {[%emt 0:00:04]} Be5 {[%emt 0:00:00]} 26. a5 {[%emt 0:01:24] aiming for a6+.} Ra8 {[%emt 0:00:00]} 27. Bxe5 {[%emt 0:07:04]} fxe5 $11 {[%emt 0:00:00][%mdl 4096] Endgame KRR-KRR} 28. Ke2 {[%emt 0:00:02]} Rhf8 {[%emt 0:00:00]} 29. Rd3 {[%emt 0:00:45]} Rf7 {[%emt 0:00:00]} 30. Re3 {[%emt 0:01:00]} Re8 {[%emt 0:00:00]} 31. Rc3 {[%emt 0:05:14]} Ra8 {[%emt 0:00:21]} 32. Raa3 {[%emt 0:01:19]} Raf8 {[%emt 0:02:08]} 33. f3 {[%emt 0:00:06]} g5 {[%emt 0:00:28]} 34. Rcb3 {[%emt 0:05:27] Black must now prevent a6+.} Ra8 {[%emt 0:01:08]} 35. Ra4 {[%emt 0:00:14]} Ka6 {[%emt 0:01:07] The position is equal.} 36. h4 {[%emt 0:02:09]} gxh4 {[%emt 0:01:07]} 37. Rxh4 {[%emt 0:00:16]} Rg8 {[%emt 0:03:11]} 38. Kf2 {[%emt 0:00:35]} e4 {[%emt 0:00:00]} 39. Rb2 {[%emt 0:02:55]} Rfg7 {[%emt 0:00:00]} (39... Kxa5 $2 40. Rh1 e3+ 41. Kxe3 Re8+ 42. Kd4 Rf4+ 43. Kc5 $18) 40. Ke3 {[%emt 0:00:36] Weighted Error Value: White=0.07 (flawless) /Black=0.07 (flawless)} 1/2-1/2

[Event "Czech Championship 2022"]
[Site "Usti nad Labem"]
[Date "2022.05.21"]
[Round "8.4"]
[White "Nemec, Jachym"]
[Black "Stocek, Jiri"]
[Result "0-1"]
[ECO "E27"]
[WhiteElo "2367"]
[BlackElo "2533"]
[Annotator "TA"]
[PlyCount "70"]
[EventDate "2022.05.12"]
[EventType "swiss"]
[EventCountry "CZE"]
[SourceTitle "playchess.com"]
[Source "ChessBase"]
[SourceQuality "1"]
[TimeControl "40/5400+30:1800+30"]

{[%evp 14,70,0,9,15,-12,-4,0,31,0,0,0,0,-11,-6,-49,-52,-52,-48,-73,-34,-27,-18,-12,-25,-102,-94,-179,-164,-209,-62,-82,-21,-79,-40,-85,-110,-157,-160,-170,-131,-127,-137,-128,-114,-137,-137,-271,-281,-253,-256,-613,-609,-563,-247,-918,-870,-29988,-1027]} 1. d4 {[%emt 0:00:02]} Nf6 {[%emt 0:13:16]} 2. c4 {[%emt 0:00:04]} e6 {[%emt 0:00:07]} 3. Nc3 {[%emt 0:00:05]} Bb4 {[%emt 0:00:05]} 4. a3 {[%emt 0:00:03]} Bxc3+ {[%emt 0:00:08]} 5. bxc3 {[%emt 0:00:05]} O-O {[%emt 0:04:08]} 6. f3 {[%emt 0:00:34]} Ne8 {[%emt 0:07:52]} 7. e4 {[%emt 0:00:39]} b6 {[%emt 0:00:05]} 8. Bd3 {[%emt 0:02:04]} Ba6 {[%emt 0:00:16] E27: Nimzo-Indian: Sämisch: 5...0-0 6 f3.} 9. f4 {[%emt 0:03:36]} f5 {[%emt 0:15:50]} 10. e5 {[%emt 0:02:48]} Nc6 {[%emt 0:01:43] The position is equal.} 11. Qe2 {[%emt 0:00:59]} Na5 {[%emt 0:01:33]} 12. Nf3 {[%emt 0:01:15]} d5 {[%emt 0:01:17][%cal Rd5c4]} 13. exd6 {[%emt 0:10:33]} Nxd6 {[%emt 0:01:02][%cal Ra6c4]} 14. Ne5 {[%emt 0:03:56] [#]} Qh4+ $146 {[%emt 0:03:54]} ({Predecessor:} 14... Nf7 15. O-O Nxe5 16. fxe5 Qd7 17. Rb1 Rf7 18. g4 Qc6 19. gxf5 Bxc4 20. fxe6 Rxf1+ 21. Qxf1 Qxe6 {0-1 (34) Terrieux,K (2343)-Leitao,R (2598) Charleroi 2006}) 15. g3 {[%emt 0:00:54]} Qh3 {[%emt 0:01:28]} 16. Be3 {[%emt 0:05:16]} Rac8 {[%emt 0:03:57]} 17. O-O-O {[%emt 0:05:57]} c6 {[%emt 0:07:24][%cal Bc7c6,Bc6c5][%mdl 32]} 18. Qa2 {[%emt 0:04:29] [#] And now c5 would win.} Qh6 {[%emt 0:04:00]} 19. a4 {[%emt 0:21:13]} (19. h4 $11) 19... c5 $17 {[%emt 0:06:36]} 20. d5 {[%emt 0:06:17]} (20. Rhg1 $17) 20... Rfe8 {[%emt 0:02:06]} 21. Kb1 {[%emt 0:08:53]} Qf6 {[%emt 0:03:08]} (21... exd5 $19 {[%cal Ra5c4]} 22. cxd5 Bxd3+ 23. Rxd3 c4) 22. Rhe1 {[%emt 0:05:42]} Qe7 {[%emt 0:01:10]} (22... Rcd8 $17) 23. Kc2 {[%emt 0:01:41]} (23. Bc1 $11) 23... Qc7 {[%emt 0:04:23]} 24. Bg1 {[%emt 0:04:27]} Rcd8 {[%emt 0:01:03]} 25. Be2 {[%emt 0:01:24]} (25. Kb1 $142) 25... Nf7 {[%emt 0:02:56] Pair of Knights!} 26. Bd3 {[%emt 0:02:33]} exd5 {[%emt 0:06:51]} 27. cxd5 {[%emt 0:00:32]} Bxd3+ {[%emt 0:00:07]} 28. Nxd3 {[%emt 0:01:10][%cal Od3e5]} Re4 {[%emt 0:03:38] Prevents Ne5.} 29. Rxe4 {[%emt 0:02:45]} fxe4 {[%emt 0:00:05]} 30. Nb2 {[%emt 0:00:30]} (30. Ne1 $17) 30... Nd6 $19 {[%emt 0:00:38][%cal Oe4e3]} 31. Re1 {[%emt 0:01:02]} Qf7 {[%emt 0:00:54][%cal Oe4e3]} 32. Nd1 $2 {[%emt 0:00:58]} (32. Kb1) 32... Ndc4 {[%emt 0:00:47]} 33. Ne3 {[%emt 0:00:32] [#]} Nxe3+ {[%emt 0:01:52]} (33... Rxd5 $142 $1 {( -> ...Rd2+)} 34. Nxc4 Nxc4) 34. Rxe3 $2 {[%emt 0:00:10]} (34. Bxe3 Rxd5 35. Kb1) 34... Rxd5 {[%emt 0:00:05][%cal Od5d2] Strongly threatening ...Rd2+!} 35. Qa1 {[%emt 0:02:05]} Rd2+ {[%emt 0:00:23] Weighted Error Value: White=0.78/Black=0.31} 0-1

[Event "Czech Championship 2022"]
[Site "Usti nad Labem"]
[Date "2022.05.21"]
[Round "8.5"]
[White "Krejci, Jan"]
[Black "Stalmach, Richard"]
[Result "1-0"]
[ECO "E71"]
[WhiteElo "2520"]
[BlackElo "2350"]
[Annotator "TA"]
[PlyCount "69"]
[EventDate "2022.05.12"]
[EventType "swiss"]
[EventCountry "CZE"]
[SourceTitle "playchess.com"]
[Source "ChessBase"]
[SourceQuality "1"]
[TimeControl "40/5400+30:1800+30"]

{[%evp 11,69,25,40,38,49,33,45,45,50,87,77,27,43,37,90,59,75,52,123,115,169,185,172,165,181,186,147,127,212,199,433,261,302,208,204,212,214,175,175,163,350,341,322,328,1306,674,674,662,627,599,414,329,1176,1137,29988,29989,29990,29990,29991,29991]} 1. d4 {[%emt 0:00:02]} Nf6 {[%emt 0:00:09]} 2. c4 {[%emt 0:00:05]} g6 {[%emt 0:00:06]} 3. Nc3 {[%emt 0:00:04]} Bg7 {[%emt 0:00:04]} 4. e4 {[%emt 0:00:05]} d6 {[%emt 0:00:04]} 5. h3 {[%emt 0:00:05]} O-O {[%emt 0:00:09]} 6. Be3 {[%emt 0:00:04]} Na6 {[%emt 0:01:55]} 7. g4 {[%emt 0:04:50] E71: King's Indian: 4 e4 d6 5 h3.} c6 {[%emt 0:00:12][%cal Bc7c6,Bc6b5,Bb5b4][%mdl 32]} 8. Nge2 {[%emt 0:02:57] [#]} Rb8 $146 {[%emt 0:02:06]} ({Predecessor:} 8... Nc7 9. Ng3 b5 10. cxb5 cxb5 11. Bg2 e5 12. dxe5 dxe5 13. Qxd8 Rxd8 14. O-O b4 {½-½ (39) Parligras,M (2623)-Grischuk,A (2769) Douglas 2018}) 9. Ng3 {[%emt 0:02:05] White is slightly better.} b5 {[%emt 0:06:17]} 10. cxb5 {[%emt 0:05:05]} cxb5 {[%emt 0:00:26]} 11. Bg2 {[%emt 0:03:28]} ({Not} 11. Nxb5 {[#]} Rxb5 $1 {[%mdl 512]} 12. Bxb5 Qa5+ 13. Kf1 Qxb5+ 14. Qe2 Qxe2+ 15. Kxe2 Bb7 $17) (11. Bxb5 $16 Nc7 12. a4) 11... b4 $11 {[%emt 0:02:58]} 12. Nce2 {[%emt 0:00:01]} Bd7 {[%emt 0:07:32]} (12... e5 $14) 13. O-O {[%emt 0:00:27]} Bb5 {[%emt 0:04:56]} 14. f4 {[%emt 0:00:25][%cal Bf2f4,Bf4f5][%mdl 32]} Qa5 {[%emt 0:06:07]} ({Black should try} 14... e5 $14) 15. f5 {[%emt 0:07:47]} Rfd8 {[%emt 0:00:54]} (15... h6 $16) 16. g5 $18 {[%emt 0:01:36]} Nd7 {[%emt 0:01:13]} 17. h4 {[%emt 0:00:32][%cal Bh3h4,Bh4h5,Bh5h6][%mdl 32]} e5 {[%emt 0:07:27]} 18. fxe6 {[%emt 0:19:28]} fxe6 {[%emt 0:00:37]} 19. h5 {[%emt 0:00:02]} Nc7 {[%emt 0:07:47]} (19... Rf8 $16) 20. Rf2 {[%emt 0:04:36]} Re8 $2 {[%emt 0:08:57]} (20... Nf8 21. a4 bxa3) 21. Rc1 {[%emt 0:07:51]} Re7 {[%emt 0:06:46]} 22. Bh3 {[%emt 0:03:28]} Nf8 {[%emt 0:01:19]} 23. h6 {[%emt 0:00:39]} Bh8 {[%emt 0:00:13]} 24. Nf4 {[%emt 0:01:26]} Ba4 {[%emt 0:05:26]} 25. Qf3 {[%emt 0:04:06] Threatens to win with Rcf1.} ({Don't take} 25. Qg4 $6 e5 $14) 25... e5 $2 {[%emt 0:02:50] [#]} (25... Rf7) 26. Rxc7 $1 {[%emt 0:05:04][%mdl 512]} Qxc7 {[%emt 0:06:00]} 27. Nd5 {[%emt 0:00:11][%csl LRc7,LRe7]} exd4 $2 {[%emt 0:02:53]} (27... Qb7 28. Nxe7+ Qxe7) 28. Nxc7 {[%emt 0:01:18][%cal Oh3e6] Intending Be6+! and mate. Pair of Knights!} dxe3 {[%emt 0:00:05] [#]} 29. Qxe3 {[%emt 0:06:02]} Rxc7 {[%emt 0:00:03]} 30. e5 {[%emt 0:01:05]} Bxe5 {[%emt 0:00:37]} 31. Bg2 {[%emt 0:00:13]} Rc5 $2 {[%emt 0:06:23]} (31... Rd8 32. Ne4 Re7) 32. Ne4 {[%emt 0:02:31]} Ra5 {[%emt 0:05:47]} 33. Qf3 {[%emt 0:01:20] White mates.} Nd7 {[%emt 0:03:17]} 34. Qf7+ {[%emt 0:00:14]} Kh8 {[%emt 0:00:04]} 35. Nf6 {[%emt 0:00:39] Weighted Error Value: White=0.35/Black=0.68} 1-0

[Event "Czech Championship 2022"]
[Site "Usti nad Labem"]
[Date "2022.05.21"]
[Round "8.6"]
[White "Rasik, Vitezslav"]
[Black "Cernousek, Lukas"]
[Result "1/2-1/2"]
[ECO "B50"]
[WhiteElo "2433"]
[BlackElo "2440"]
[Annotator "TA"]
[PlyCount "212"]
[EventDate "2022.05.12"]
[EventType "swiss"]
[EventCountry "CZE"]
[SourceTitle "playchess.com"]
[Source "ChessBase"]
[SourceQuality "1"]
[TimeControl "40/5400+30:1800+30"]

{[%evp 15,212,31,43,31,46,50,32,43,49,46,51,46,45,57,64,44,84,54,58,38,31,33,77,72,75,80,85,81,84,82,85,86,84,81,90,93,98,98,103,103,104,104,104,103,110,107,104,104,110,112,112,106,104,104,112,104,112,105,105,80,80,80,80,80,80,80,80,81,146,146,146,146,146,146,146,146,146,146,146,120,137,196,150,164,191,191,146,146,203,47,47,36,36,0,47,0,206,0,55,43,165,0,172,111,482,479,477,179,179,179,187,179,523,181,181,181,492,0,183,188,456,188,188,189,364,189,189,0,514,341,473,391,379,144,144,144,156,156,1004,969,1115,550,1047,589,1132,795,675,142,304,453,387,142,151,0,770,757,708,652,404,142,1173,0,1139,0,1088,316,1075,680,401,620,791,612,1056,581,575,142,527,0,866,0,459,0,142,142,142,0,192,142,543,479,333,142,142,142,151,0,142,0,142]} 1. e4 {[%emt 0:00:04]} c5 {[%emt 0:00:06]} 2. Nf3 {[%emt 0:00:22]} d6 {[%emt 0:00:09]} 3. c3 {[%emt 0:00:20]} Nf6 {[%emt 0:00:11]} 4. h3 {[%emt 0:00:17]} Nbd7 {[%emt 0:00:28]} 5. Bd3 {[%emt 0:02:49]} b6 {[%emt 0:00:10]} 6. O-O {[%emt 0:00:54]} Bb7 {[%emt 0:00:07]} 7. Re1 {[%emt 0:00:40]} Rc8 {[%emt 0:00:32]} 8. Bc2 {[%emt 0:08:50]} Qc7 {[%emt 0:00:04]} 9. Na3 {[%emt 0:03:50]} e6 {[%emt 0:00:03]} 10. Nb5 {[%emt 0:08:02]} Qb8 $1 {[%emt 0:00:21]} 11. d4 {[%emt 0:02:51]} a6 {[%emt 0:04:02]} 12. Na3 {[%emt 0:06:20]} cxd4 {[%emt 0:04:14]} 13. cxd4 {[%emt 0:01:37]} ({Reject} 13. Qxd4 b5 $15) 13... d5 {[%emt 0:00:46]} 14. e5 {[%emt 0:01:23]} Ne4 {[%emt 0:00:06]} 15. Nb1 {[%emt 0:06:20]} Qa8 {[%emt 0:33:47]} 16. Bf4 {[%emt 0:06:39]} Be7 {[%emt 0:00:32]} 17. Nbd2 {[%emt 0:00:55]} O-O {[%emt 0:05:12]} 18. Qb1 {[%emt 0:05:25]} Rc7 {[%emt 0:16:47]} 19. Nxe4 {[%emt 0:08:03]} dxe4 {[%emt 0:00:02]} 20. Bxe4 {[%emt 0:00:31]} Bxe4 {[%emt 0:00:24]} 21. Qxe4 {[%emt 0:01:03]} Qxe4 {[%emt 0:02:02]} 22. Rxe4 {[%emt 0:00:09]} Rc2 {[%emt 0:01:34]} 23. Rb1 {[%emt 0:03:18]} b5 {[%emt 0:00:37]} 24. Ree1 {[%emt 0:05:27]} Nb6 {[%emt 0:02:26]} 25. Rec1 {[%emt 0:06:39]} Rfc8 {[%emt 0:00:02]} 26. Ne1 {[%emt 0:01:00]} Rxc1 {[%emt 0:10:01]} 27. Rxc1 {[%emt 0:00:07]} Rxc1 {[%emt 0:04:24]} 28. Bxc1 {[%emt 0:00:13]} Kf8 {[%emt 0:01:27]} 29. Kf1 {[%emt 0:04:22]} Ke8 {[%emt 0:00:06]} 30. Ke2 {[%emt 0:00:21]} Nd5 {[%emt 0:06:35]} 31. Nc2 {[%emt 0:03:20]} a5 {[%emt 0:07:44]} 32. Bd2 {[%emt 0:00:43]} a4 {[%emt 0:00:11]} 33. Kd3 {[%emt 0:03:21]} Kd7 {[%emt 0:00:03]} 34. Ke4 {[%emt 0:01:38]} Kc6 {[%emt 0:00:03]} 35. g3 {[%emt 0:02:27]} Kd7 {[%emt 0:01:16]} 36. Ne3 {[%emt 0:02:54]} Nxe3 {[%emt 0:00:04]} 37. Bxe3 {[%emt 0:00:53]} Kc6 {[%emt 0:00:15]} 38. Bd2 {[%emt 0:00:23]} Bf8 {[%emt 0:01:49]} 39. f3 {[%emt 0:03:23]} Be7 {[%emt 0:00:05]} 40. Be1 {[%emt 0:01:38]} Bf8 {[%emt 0:00:08]} 41. g4 {[%emt 0:14:50]} Be7 {[%emt 0:00:00]} (41... g6 $142) 42. h4 $1 $16 {[%emt 0:00:33]} Bd8 {[%emt 0:01:29]} 43. h5 {[%emt 0:00:57]} Be7 {[%emt 0:01:47]} 44. Bd2 {[%emt 0:00:50]} g6 {[%emt 0:14:10]} 45. Be1 {[%emt 0:00:33]} Bg5 {[%emt 0:01:26]} 46. f4 {[%emt 0:01:06]} Be7 {[%emt 0:00:22]} 47. Bd2 {[%emt 0:00:55]} Bh4 {[%emt 0:07:11]} 48. Be3 {[%emt 0:02:08]} (48. f5 $16) 48... Be1 {[%emt 0:00:36]} (48... Bg3 $18 49. f5 Be1) 49. f5 {[%emt 0:02:23]} Bg3 {[%emt 0:02:33]} 50. Bd2 {[%emt 0:04:22]} Bh4 {[%emt 0:00:30]} 51. f6 {[%emt 0:00:32]} Bf2 {[%emt 0:02:13]} (51... Bg3 $16 52. Bf4 Be1) 52. Bb4 $2 {[%emt 0:00:16]} (52. a3 $18) 52... Bh4 $1 $14 {[%emt 0:00:33]} 53. Bf8 {[%emt 0:01:14]} Bg5 $1 {[%emt 0:01:08]} 54. Bb4 {[%emt 0:01:50]} Bh4 {[%emt 0:01:45]} 55. Bd2 {[%emt 0:00:22]} (55. hxg6 $14 {is superior.} hxg6 56. Bd2) 55... Bg3 $2 {[%emt 0:01:21]} (55... Bf2 $11 {and Black stays safe.}) 56. Bb4 $2 {[%emt 0:02:08]} (56. a3 $1 $18) 56... Bh4 $1 $14 {[%emt 0:00:08]} 57. Bc3 {[%emt 0:00:40]} Bf2 {[%emt 0:00:32]} ({Better is} 57... Bg5 $1 $14) 58. Bd2 $2 {[%emt 0:02:58]} (58. a3 $18) 58... Bh4 $2 {[%emt 0:00:57]} (58... Bg3 $1 $11) 59. Bh6 {[%emt 0:00:18]} (59. a3 $1 $18) 59... Bf2 $2 {[%emt 0:01:03][%mdl 8192]} (59... Bg3 $16 60. Bd2 gxh5) 60. d5+ $18 {[%emt 0:00:51]} Kd7 {[%emt 0:01:06]} (60... exd5+ 61. Kf3 Bd4 62. hxg6 hxg6 63. e6 fxe6 64. f7 $18) 61. Bf8 $2 {[%emt 0:00:35]} (61. hxg6 hxg6 62. Bd2) 61... Bb6 $18 {[%emt 0:00:29]} 62. Bb4 {[%emt 0:00:09]} Bf2 {[%emt 0:00:18]} 63. Bc3 {[%emt 0:00:18]} Bg3 $2 {[%emt 0:00:33]} (63... Bc5 64. Bd2 Bb6) 64. Bd4 $2 {[%emt 0:00:22]} (64. hxg6 hxg6 65. b3) 64... Be1 $18 {[%emt 0:00:17]} 65. Be3 {[%emt 0:00:19]} Bg3 $2 {[%emt 0:00:40]} (65... Ba5 66. Bc5 Bd2) 66. Bd4 $2 {[%emt 0:01:15]} (66. hxg6 hxg6 67. Kd4) 66... Be1 $1 $18 {[%emt 0:00:14]} 67. Bb6 {[%emt 0:00:39]} Bg3 $2 {[%emt 0:00:15]} (67... Bd2 {keeps fighting.} 68. Bf2 b4 69. hxg6 hxg6) 68. Ba5 {[%emt 0:00:18]} (68. Be3 $142 Bh4 69. Kd4) 68... Bf2 $18 {[%emt 0:00:16]} 69. Bb4 {[%emt 0:00:16]} Bg3 $2 {[%emt 0:00:04]} (69... Bb6 {was necessary.} 70. Bc3 gxh5) 70. Bc5 {[%emt 0:00:30]} (70. Bd2 $142 {Hoping for Kd4.} Bf2 71. Bc3) 70... Be1 $18 {[%emt 0:00:10]} 71. Be3 $2 {[%emt 0:00:08]} (71. d6) 71... Bg3 $1 $18 {[%emt 0:00:13]} 72. Kd4 {[%emt 0:00:06]} Bh2 {[%emt 0:00:07]} 73. Bf2 {[%emt 0:00:33]} Bf4 {[%emt 0:00:06]} 74. Bg1 $2 {[%emt 0:01:17]} (74. hxg6 $18 {is more deadly. Intending g7 and mate.} hxg6 75. Be3) 74... Bc1 $16 {[%emt 0:00:35]} 75. b3 {[%emt 0:00:13]} axb3 {[%emt 0:00:06]} 76. axb3 {[%emt 0:00:02]} Bf4 $2 {[%emt 0:02:15]} (76... Bb2+ $16 77. Ke4 Bc1) 77. Bf2 {[%emt 0:00:16]} Bc1 {[%emt 0:01:47]} 78. Ke4 {[%emt 0:02:16]} (78. hxg6 $142 {g7 would kill now.} hxg6 79. Be1) 78... Bb2 {[%emt 0:00:28]} 79. Bd4 {[%emt 0:00:13]} Ba3 {[%emt 0:00:45]} 80. Bc3 {[%emt 0:00:10]} Bc5 {[%emt 0:00:13]} 81. Bb2 $2 {[%emt 0:00:14]} (81. hxg6 $18 hxg6 82. Bd2) 81... Bb6 $16 {[%emt 0:00:22]} 82. Ba3 $1 {[%emt 0:00:33]} Ba5 {[%emt 0:00:12]} 83. Bc5 $2 {[%emt 0:00:42]} (83. hxg6 $18 {and White stays clearly on top.} hxg6 84. Bb2) 83... Bc3 {[%emt 0:00:10]} 84. Ba3 $2 {[%emt 0:00:44]} ({White should play} 84. Be3 $16) 84... Ba1 $2 {[%emt 0:00:33][%mdl 8192]} (84... Ba5 $11) 85. Bb4 $18 {[%emt 0:00:13]} Bb2 {[%emt 0:00:03]} 86. Bd2 {[%emt 0:00:13]} Ba1 {[%emt 0:00:28]} 87. Be3 $2 {[%emt 0:00:39]} (87. d6 $18 {has better winning chances. Kf4 is the strong threat.} Bb2 88. Be3) 87... Bb2 $2 {[%emt 0:00:29][%mdl 8192]} (87... Bc3 $16 88. Bc1 Ke8) 88. Bd4 {[%emt 0:00:28]} Ba3 $1 {[%emt 0:00:46]} 89. Bc3 {[%emt 0:00:41]} Bc5 $1 {[%emt 0:00:16]} 90. Bd2 $2 {[%emt 0:00:17]} (90. hxg6 {White threatens g7 and mate.} hxg6 91. Bd2) 90... Bb6 $2 {[%emt 0:00:48]} (90... Bf2 91. Bb4 Bg1) 91. Be1 $1 $18 {[%emt 0:01:05]} Bc5 {[%emt 0:00:16]} 92. Bc3 {[%emt 0:00:20]} (92. b4 $142 Ba7 93. Bg3) 92... Bb6 {[%emt 0:00:49]} 93. Bb4 {[%emt 0:01:00]} Bg1 {[%emt 0:00:35]} 94. Bd6 {[%emt 0:00:18]} Bf2 {[%emt 0:00:44]} 95. Bf8 $2 {[%emt 0:00:36]} (95. hxg6 $1 $18 hxg6 96. Bb4) 95... Bb6 $2 {[%emt 0:00:12][%mdl 8192]} (95... Be1 $16 {is tougher.} 96. Bc5 gxh5) 96. Bb4 {[%emt 0:00:17]} (96. hxg6 $142 hxg6 97. Bb4) 96... Bg1 $1 $18 {[%emt 0:00:12] [#]} 97. Bc3 $2 {[%emt 0:00:25]} (97. hxg6 $1 $18 hxg6 98. Bd2) 97... Bc5 $2 {[%emt 0:00:16][%mdl 8192] [#]} (97... Bb6 $11 {and Black is okay.}) 98. Bd4 $2 {[%emt 0:00:41]} (98. Be1 $1 $18 {aiming for d6.} Bg1 99. Bc3) 98... Bb4 {[%emt 0:00:40]} (98... Ba3 $1 $11 {remains equal.}) 99. Bf2 {[%emt 0:00:32]} Bc3 {[%emt 0:00:11]} 100. Be3 {[%emt 0:00:21]} (100. d6 $16) 100... Bb2 $1 $18 {[%emt 0:00:16]} 101. Bf4 {[%emt 0:00:14]} (101. d6 $18) 101... Ba1 $2 {[%emt 0:00:32][%mdl 8192]} (101... Bc3 $16 {is a better chance.} 102. Be3 Bb4) 102. Bd2 $18 {[%emt 0:00:26]} Bb2 {[%emt 0:00:12]} 103. Be3 {[%emt 0:00:22]} (103. Be1 $18) 103... Bc3 $16 {[%emt 0:00:23]} 104. Bc5 {[%emt 0:00:17]} Bb2 {[%emt 0:00:47]} 105. Bd4 {[%emt 0:00:32]} Ba3 $1 {[%emt 0:00:20]} 106. Bc3 {[%emt 0:02:08]} Bc5 $1 1/2-1/2

[Event "Czech Championship 2022"]
[Site "Usti nad Labem"]
[Date "2022.05.21"]
[Round "8.7"]
[White "Rubes, Jan"]
[Black "Sorm, Daniel"]
[Result "1/2-1/2"]
[ECO "D24"]
[WhiteElo "2386"]
[BlackElo "2306"]
[Annotator "TA"]
[PlyCount "53"]
[EventDate "2022.05.12"]
[EventType "swiss"]
[EventCountry "CZE"]
[SourceTitle "playchess.com"]
[Source "ChessBase"]
[SourceQuality "1"]
[TimeControl "40/5400+30:1800+30"]

{[%evp 9,53,19,32,0,-3,0,14,-17,-10,-22,-13,-17,0,-14,-7,0,8,-14,-16,-12,-16,-22,-57,-102,-80,-77,-83,-100,-92,-90,-33,-24,-33,-106,-62,-86,-58,-70,-59,-65,0,-61,0,-58,0,-50]} 1. d4 {[%emt 0:00:02]} d5 {[%emt 0:06:31]} 2. c4 {[%emt 0:00:27]} e6 {[%emt 0:00:24]} 3. Nf3 {[%emt 0:00:08]} Nf6 {[%emt 0:00:30]} 4. Nc3 {[%emt 0:00:52]} dxc4 {[%emt 0:00:26]} 5. e4 {[%emt 0:02:44]} Bb4 {[%emt 0:00:14]} 6. Bxc4 {[%emt 0:00:05] D24: Queen's Gambit Accepted: 3 Nf3 Nf6 4 Nc3.} Nxe4 {[%emt 0:00:06]} 7. O-O {[%emt 0:00:05]} Nf6 {[%emt 0:00:07]} 8. Bg5 {[%emt 0:00:58][%mdl 1024] White has compensation.} O-O {[%emt 0:00:44]} 9. Qe2 {[%emt 0:05:43]} h6 {[%emt 0:00:35]} 10. Bh4 {[%emt 0:00:17] [#]} Nbd7 $146 {[%emt 0:00:49][%cal Bb8d7,Bd7b6,Bb6d5,Bd5c3][%mdl 32]} ({Predecessor:} 10... Be7 11. Rad1 Nc6 12. Rfe1 Nd5 13. Bxd5 Bxh4 14. Bxc6 bxc6 15. Qc4 Rb8 16. Nxh4 Qxh4 {½-½ (32) Carlsen,M (2847)-Duda,J (2738) Krasnaya Polyana 2021}) 11. Rad1 {[%emt 0:01:10]} Nb6 {[%emt 0:09:52]} 12. Bd3 {[%emt 0:00:33]} Nbd5 {[%emt 0:03:55]} 13. Bc2 {[%emt 0:31:51]} Bxc3 {[%emt 0:04:20]} ({Resist} 13... Nxc3 14. bxc3 Be7 15. Qd3 $14) 14. bxc3 {[%emt 0:00:26]} Nxc3 {[%emt 0:00:39] Pair of Knights!} 15. Qd3 {[%emt 0:00:11] [#] And now Bxf6 would win.} Ncd5 {[%emt 0:00:10]} (15... Nxd1 $2 16. Bxf6 g6 17. Bxd8 $18) 16. a3 {[%emt 0:01:56]} Qd6 {[%emt 0:07:43]} 17. Ne5 {[%emt 0:01:16][%cal Oe5g4]} Qa6 {[%emt 0:01:21]} 18. Qf3 {[%emt 0:02:37]} Bd7 {[%emt 0:04:33]} 19. Rb1 {[%emt 0:02:21]} Ba4 {[%emt 0:14:20]} (19... Bb5 $17 20. Rfe1 Nd7) 20. Bd3 $15 {[%emt 0:00:27]} Qd6 {[%emt 0:01:17]} 21. g4 {[%emt 0:00:25]} (21. Rxb7 $15 Rfb8 22. Rfb1 Rxb7 23. Rxb7) 21... c5 {[%emt 0:04:04]} 22. Bg3 {[%emt 0:06:38]} Qe7 {[%emt 0:00:29]} 23. h4 {[%emt 0:00:50]} Nd7 {[%emt 0:03:28] Threatens to win with ...Nxe5.} (23... cxd4 24. g5 Nd7 25. Rxb7 $11) 24. Qe4 {[%emt 0:04:41][%csl Gd3][%cal Re4h7] [#]} N7f6 {[%emt 0:05:02] Inhibits Qh7+.} (24... N5f6 $5 {[%cal Rf6e4]} 25. Qe2 cxd4 26. Rxb7 Qc5 $15) 25. Qf3 {[%emt 0:03:36]} Nd7 {[%emt 0:00:19] Strongly threatening ...Nxe5.} ({But not} 25... cxd4 26. g5 Nd7 27. Rxb7 $11) 26. Qe4 {[%emt 0:00:05][%csl Gd3][%cal Re4h7]} N7f6 {[%emt 0:00:06] Prevents Qh7+.} (26... N5f6 $5 {[%cal Rf6e4]} 27. Qe2 cxd4 28. Rxb7 Qc5 $15) 27. Qf3 {[%emt 0:04:13] Weighted Error Value: White=0.13 (very precise) /Black=0.20 (precise)} 1/2-1/2